{"text_format":"1","workbook":"xlsx","n_sheets":2,"sheets":["Notice","Roster"],"not_rendered":{"charts":0,"images":1,"macros":1,"external_links":0,"defined_names":0,"comments":0,"pivot_tables":0},"unopened":[],"bounds":{"document_bytes":16777216,"sheet_cells":100000,"rows_first":2000,"rows_last":500,"rows_between":2000,"halvings":0,"cell_chars":16384,"cell_head_chars":4096},"cells_cut":0,"cells_raw":0,"read":"whole","date_system":"1900"}

{"sheet":"Notice","index":0,"n_rows":3,"n_cols":3,"rows_kept":3,"cut":false,"hidden":false,"merged":[]}
[]
[]
[null,null,"In order to properly use this document, you must enable macros"]

{"sheet":"Roster","index":1,"n_rows":206,"n_cols":19,"rows_kept":206,"cut":false,"hidden":true,"merged":[[3,0,4,0],[1,1,2,1],[3,1,4,1],[3,2,4,7],[1,2,2,11],[3,11,4,11]]}
[null,"# Students",1,null,null,null,null,null,null,null,null,"Version  - 2.8"]
[null,"School:"," Please select a school from the drop down"]
[]
[null,"Instructor E-mail Address",null,null,null,null,null,null,null,null,null,{"$f":"validateEmail(C4)","v":"Invalid E-mail Address"}]
[]
[]
["#","StudentID","First Name","Middle Initial","Last Name","Student School Email","First Clinical Day","Last Clinical Day","School","Contact","Valid","Validation"]
[1,null,null,null,null,null,null,null,null,null,null,{"$f":"TRIM(IF(ROW()-7 <= $C$1, validateResults(A8:L8), \"Exempt\"))","v":"StudentID Invalid - Must be populated and unique \r\nFirst Name Invalid - Check for spaces and symbols\r\nLast Name Invalid - Check for spaces and symbols\r\nStudent Email Invalid - Check for spaces and formatting\r\nFirst Clinical Day Invalid - Cannot be empty\r\nLast Clinical Day Invalid - Cannot be empty\r\nStart Date exceeds EndDate\r\n"},null,null,null,null,null,null," Please select a school from the drop down"]
[2,null,null,null,null,null,null,null,null,null,null,{"$f":"TRIM(IF(ROW()-7 <= $C$1, validateResults(A9:L9), \"Exempt\"))","v":"Exempt"},null,null,null,null,null,null,"Ashland University"]
[3,null,null,null,null,null,null,null,null,null,null,"Exempt",null,null,null,null,null,null,"Benedictine University"]
[4,null,null,null,null,null,null,null,null,null,null,"Exempt",null,null,null,null,null,null,"Capital University"]
[5,null,null,null,null,null,null,null,null,null,null,"Exempt",null,null,null,null,null,null,"Case Western Reserve"]
[6,null,null,null,null,null,null,null,null,null,null,"Exempt",null,null,null,null,null,null,"Central Ohio Technical College"]
[7,null,null,null,null,null,null,null,null,null,null,"Exempt",null,null,null,null,null,null,"Chamberlain College of Nursing"]
[8,null,null,null,null,null,null,null,null,null,null,"Exempt",null,null,null,null,null,null,"Chatham University"]
[9,null,null,null,null,null,null,null,{"$f":"$C$2","v":" Please select a school from the drop down"},{"$f":"$C$4","v":"00:00:00"},{"$f":"IF(ROW()-7 <= $C$1, IsValid(MyNamedRange[[#This Row],[StudentID]:[Valid]]), \"Exempt\")","v":"Exempt"},"Exempt",null,null,null,null,null,null,"Columbus State"]
[10,null,null,null,null,null,null,null," Please select a school from the drop down","00:00:00",{"$f":"IF(ROW()-7 <= $C$1, IsValid(MyNamedRange[[#This Row],[StudentID]:[Valid]]), \"Exempt\")","v":"Exempt"},"Exempt",null,null,null,null,null,null,"Fitchburg State University"]
[11,null,null,null,null,null,null,null," Please select a school from the drop down","00:00:00",{"$f":"IF(ROW()-7 <= $C$1, IsValid(MyNamedRange[[#This Row],[StudentID]:[Valid]]), \"Exempt\")","v":"Exempt"},"Exempt",null,null,null,null,null,null,"Franklin University"]
[12,null,null,null,null,null,null,null," Please select a school from the drop down","00:00:00",{"$f":"IF(ROW()-7 <= $C$1, IsValid(MyNamedRange[[#This Row],[StudentID]:[Valid]]), \"Exempt\")","v":"Exempt"},"Exempt",null,null,null,null,null,null,"Frontier Nursing University"]
[13,null,null,null,null,null,null,null," Please select a school from the drop down","00:00:00",{"$f":"IF(ROW()-7 <= $C$1, IsValid(MyNamedRange[[#This Row],[StudentID]:[Valid]]), \"Exempt\")","v":"Exempt"},"Exempt",null,null,null,null,null,null,"George Mason University"]
[14,null,null,null,null,null,null,null," Please select a school from the drop down","00:00:00",{"$f":"IF(ROW()-7 <= $C$1, IsValid(MyNamedRange[[#This Row],[StudentID]:[Valid]]), \"Exempt\")","v":"Exempt"},"Exempt",null,null,null,null,null,null,"George Washington University"]
[15,null,null,null,null,null,null,null," Please select a school from the drop down","00:00:00",{"$f":"IF(ROW()-7 <= $C$1, IsValid(MyNamedRange[[#This Row],[StudentID]:[Valid]]), \"Exempt\")","v":"Exempt"},"Exempt",null,null,null,null,null,null,"Georgetown University"]
[16,null,null,null,null,null,null,null," Please select a school from the drop down","00:00:00",{"$f":"IF(ROW()-7 <= $C$1, IsValid(MyNamedRange[[#This Row],[StudentID]:[Valid]]), \"Exempt\")","v":"Exempt"},"Exempt",null,null,null,null,null,null,"Hocking College"]
[17,null,null,null,null,null,null,null," Please select a school from the drop down","00:00:00",{"$f":"IF(ROW()-7 <= $C$1, IsValid(MyNamedRange[[#This Row],[StudentID]:[Valid]]), \"Exempt\")","v":"Exempt"},"Exempt",null,null,null,null,null,null,"Hondros College School of Nursing"]
[18,null,null,null,null,null,null,null," Please select a school from the drop down","00:00:00",{"$f":"IF(ROW()-7 <= $C$1, IsValid(MyNamedRange[[#This Row],[StudentID]:[Valid]]), \"Exempt\")","v":"Exempt"},"Exempt",null,null,null,null,null,null,"Indiana State University"]
[19,null,null,null,null,null,null,null," Please select a school from the drop down","00:00:00",{"$f":"IF(ROW()-7 <= $C$1, IsValid(MyNamedRange[[#This Row],[StudentID]:[Valid]]), \"Exempt\")","v":"Exempt"},"Exempt",null,null,null,null,null,null,"Indiana Wesleyan University"]
[20,null,null,null,null,null,null,null," Please select a school from the drop down","00:00:00",{"$f":"IF(ROW()-7 <= $C$1, IsValid(MyNamedRange[[#This Row],[StudentID]:[Valid]]), \"Exempt\")","v":"Exempt"},"Exempt",null,null,null,null,null,null,"Kaplan University"]
[21,null,null,null,null,null,null,null," Please select a school from the drop down","00:00:00",{"$f":"IF(ROW()-7 <= $C$1, IsValid(MyNamedRange[[#This Row],[StudentID]:[Valid]]), \"Exempt\")","v":"Exempt"},"Exempt",null,null,null,null,null,null,"Kent State University"]
[22,null,null,null,null,null,null,null," Please select a school from the drop down","00:00:00",{"$f":"IF(ROW()-7 <= $C$1, IsValid(MyNamedRange[[#This Row],[StudentID]:[Valid]]), \"Exempt\")","v":"Exempt"},"Exempt",null,null,null,null,null,null,"Liberty University"]
[23,null,null,null,null,null,null,null," Please select a school from the drop down","00:00:00",{"$f":"IF(ROW()-7 <= $C$1, IsValid(MyNamedRange[[#This Row],[StudentID]:[Valid]]), \"Exempt\")","v":"Exempt"},"Exempt",null,null,null,null,null,null,"Marion Technical College"]
[24,null,null,null,null,null,null,null," Please select a school from the drop down","00:00:00",{"$f":"IF(ROW()-7 <= $C$1, IsValid(MyNamedRange[[#This Row],[StudentID]:[Valid]]), \"Exempt\")","v":"Exempt"},"Exempt",null,null,null,null,null,null,"Mt. Carmel College of Nursing"]
[25,null,null,null,null,null,null,null," Please select a school from the drop down","00:00:00",{"$f":"IF(ROW()-7 <= $C$1, IsValid(MyNamedRange[[#This Row],[StudentID]:[Valid]]), \"Exempt\")","v":"Exempt"},"Exempt",null,null,null,null,null,null,"Mt. Vernon Nazarene University"]
[26,null,null,null,null,null,null,null," Please select a school from the drop down","00:00:00",{"$f":"IF(ROW()-7 <= $C$1, IsValid(MyNamedRange[[#This Row],[StudentID]:[Valid]]), \"Exempt\")","v":"Exempt"},"Exempt",null,null,null,null,null,null,"Muskingum University"]
[27,null,null,null,null,null,null,null," Please select a school from the drop down","00:00:00",{"$f":"IF(ROW()-7 <= $C$1, IsValid(MyNamedRange[[#This Row],[StudentID]:[Valid]]), \"Exempt\")","v":"Exempt"},"Exempt",null,null,null,null,null,null,"North Central State College"]
[28,null,null,null,null,null,null,null," Please select a school from the drop down","00:00:00",{"$f":"IF(ROW()-7 <= $C$1, IsValid(MyNamedRange[[#This Row],[StudentID]:[Valid]]), \"Exempt\")","v":"Exempt"},"Exempt",null,null,null,null,null,null,"Ohio Northern University"]
[29,null,null,null,null,null,null,null," Please select a school from the drop down","00:00:00",{"$f":"IF(ROW()-7 <= $C$1, IsValid(MyNamedRange[[#This Row],[StudentID]:[Valid]]), \"Exempt\")","v":"Exempt"},"Exempt",null,null,null,null,null,null,"Ohio University - Athens"]
[30,null,null,null,null,null,null,null," Please select a school from the drop down","00:00:00",{"$f":"IF(ROW()-7 <= $C$1, IsValid(MyNamedRange[[#This Row],[StudentID]:[Valid]]), \"Exempt\")","v":"Exempt"},"Exempt",null,null,null,null,null,null,"Ohio University - Chillicothe"]
[31,null,null,null,null,null,null,null," Please select a school from the drop down","00:00:00",{"$f":"IF(ROW()-7 <= $C$1, IsValid(MyNamedRange[[#This Row],[StudentID]:[Valid]]), \"Exempt\")","v":"Exempt"},"Exempt",null,null,null,null,null,null,"Ohio University - Lancaster"]
[32,null,null,null,null,null,null,null," Please select a school from the drop down","00:00:00",{"$f":"IF(ROW()-7 <= $C$1, IsValid(MyNamedRange[[#This Row],[StudentID]:[Valid]]), \"Exempt\")","v":"Exempt"},"Exempt",null,null,null,null,null,null,"Ohio University - Zanesville"]
[33,null,null,null,null,null,null,null," Please select a school from the drop down","00:00:00",{"$f":"IF(ROW()-7 <= $C$1, IsValid(MyNamedRange[[#This Row],[StudentID]:[Valid]]), \"Exempt\")","v":"Exempt"},"Exempt",null,null,null,null,null,null,"Otterbein University"]
[34,null,null,null,null,null,null,null," Please select a school from the drop down","00:00:00",{"$f":"IF(ROW()-7 <= $C$1, IsValid(MyNamedRange[[#This Row],[StudentID]:[Valid]]), \"Exempt\")","v":"Exempt"},"Exempt",null,null,null,null,null,null,"Purdue University"]
[35,null,null,null,null,null,null,null," Please select a school from the drop down","00:00:00",{"$f":"IF(ROW()-7 <= $C$1, IsValid(MyNamedRange[[#This Row],[StudentID]:[Valid]]), \"Exempt\")","v":"Exempt"},"Exempt",null,null,null,null,null,null,"Regis University"]
[36,null,null,null,null,null,null,null," Please select a school from the drop down","00:00:00",{"$f":"IF(ROW()-7 <= $C$1, IsValid(MyNamedRange[[#This Row],[StudentID]:[Valid]]), \"Exempt\")","v":"Exempt"},"Exempt",null,null,null,null,null,null,"The Ohio State University"]
[37,null,null,null,null,null,null,null," Please select a school from the drop down","00:00:00",{"$f":"IF(ROW()-7 <= $C$1, IsValid(MyNamedRange[[#This Row],[StudentID]:[Valid]]), \"Exempt\")","v":"Exempt"},"Exempt",null,null,null,null,null,null,"University of Akron"]
[38,null,null,null,null,null,null,null," Please select a school from the drop down","00:00:00",{"$f":"IF(ROW()-7 <= $C$1, IsValid(MyNamedRange[[#This Row],[StudentID]:[Valid]]), \"Exempt\")","v":"Exempt"},"Exempt",null,null,null,null,null,null,"University of Cincinnati"]
[39,null,null,null,null,null,null,null," Please select a school from the drop down","00:00:00",{"$f":"IF(ROW()-7 <= $C$1, IsValid(MyNamedRange[[#This Row],[StudentID]:[Valid]]), \"Exempt\")","v":"Exempt"},"Exempt",null,null,null,null,null,null,"University of Toledo"]
[40,null,null,null,null,null,null,null," Please select a school from the drop down","00:00:00",{"$f":"IF(ROW()-7 <= $C$1, IsValid(MyNamedRange[[#This Row],[StudentID]:[Valid]]), \"Exempt\")","v":"Exempt"},"Exempt",null,null,null,null,null,null,"Vanderbilt University"]
[41,null,null,null,null,null,null,null," Please select a school from the drop down","00:00:00",{"$f":"IF(ROW()-7 <= $C$1, IsValid(MyNamedRange[[#This Row],[StudentID]:[Valid]]), \"Exempt\")","v":"Exempt"},"Exempt",null,null,null,null,null,null,"West Virginia University"]
[42,null,null,null,null,null,null,null," Please select a school from the drop down","00:00:00",{"$f":"IF(ROW()-7 <= $C$1, IsValid(MyNamedRange[[#This Row],[StudentID]:[Valid]]), \"Exempt\")","v":"Exempt"},"Exempt",null,null,null,null,null,null,"Wheeling Jesuit University"]
[43,null,null,null,null,null,null,null," Please select a school from the drop down","00:00:00",{"$f":"IF(ROW()-7 <= $C$1, IsValid(MyNamedRange[[#This Row],[StudentID]:[Valid]]), \"Exempt\")","v":"Exempt"},"Exempt",null,null,null,null,null,null,"Wright State University"]
[44,null,null,null,null,null,null,null," Please select a school from the drop down","00:00:00",{"$f":"IF(ROW()-7 <= $C$1, IsValid(MyNamedRange[[#This Row],[StudentID]:[Valid]]), \"Exempt\")","v":"Exempt"},"Exempt",null,null,null,null,null,null,"Xavier University"]
[45,null,null,null,null,null,null,null," Please select a school from the drop down","00:00:00",{"$f":"IF(ROW()-7 <= $C$1, IsValid(MyNamedRange[[#This Row],[StudentID]:[Valid]]), \"Exempt\")","v":"Exempt"},"Exempt",null,null,null,null,null,null,"Other"]
[46,null,null,null,null,null,null,null," Please select a school from the drop down","00:00:00",{"$f":"IF(ROW()-7 <= $C$1, IsValid(MyNamedRange[[#This Row],[StudentID]:[Valid]]), \"Exempt\")","v":"Exempt"},"Exempt"]
[47,null,null,null,null,null,null,null," Please select a school from the drop down","00:00:00",{"$f":"IF(ROW()-7 <= $C$1, IsValid(MyNamedRange[[#This Row],[StudentID]:[Valid]]), \"Exempt\")","v":"Exempt"},"Exempt"]
[48,null,null,null,null,null,null,null," Please select a school from the drop down","00:00:00",{"$f":"IF(ROW()-7 <= $C$1, IsValid(MyNamedRange[[#This Row],[StudentID]:[Valid]]), \"Exempt\")","v":"Exempt"},"Exempt"]
[49,null,null,null,null,null,null,null," Please select a school from the drop down","00:00:00",{"$f":"IF(ROW()-7 <= $C$1, IsValid(MyNamedRange[[#This Row],[StudentID]:[Valid]]), \"Exempt\")","v":"Exempt"},"Exempt"]
[50,null,null,null,null,null,null,null," Please select a school from the drop down","00:00:00",{"$f":"IF(ROW()-7 <= $C$1, IsValid(MyNamedRange[[#This Row],[StudentID]:[Valid]]), \"Exempt\")","v":"Exempt"},"Exempt"]
[51,null,null,null,null,null,null,null," Please select a school from the drop down","00:00:00",{"$f":"IF(ROW()-7 <= $C$1, IsValid(MyNamedRange[[#This Row],[StudentID]:[Valid]]), \"Exempt\")","v":"Exempt"},"Exempt"]
[52,null,null,null,null,null,null,null," Please select a school from the drop down","00:00:00",{"$f":"IF(ROW()-7 <= $C$1, IsValid(MyNamedRange[[#This Row],[StudentID]:[Valid]]), \"Exempt\")","v":"Exempt"},"Exempt"]
[53,null,null,null,null,null,null,null," Please select a school from the drop down","00:00:00",{"$f":"IF(ROW()-7 <= $C$1, IsValid(MyNamedRange[[#This Row],[StudentID]:[Valid]]), \"Exempt\")","v":"Exempt"},"Exempt"]
[54,null,null,null,null,null,null,null," Please select a school from the drop down","00:00:00",{"$f":"IF(ROW()-7 <= $C$1, IsValid(MyNamedRange[[#This Row],[StudentID]:[Valid]]), \"Exempt\")","v":"Exempt"},"Exempt"]
[55,null,null,null,null,null,null,null," Please select a school from the drop down","00:00:00",{"$f":"IF(ROW()-7 <= $C$1, IsValid(MyNamedRange[[#This Row],[StudentID]:[Valid]]), \"Exempt\")","v":"Exempt"},"Exempt"]
[56,null,null,null,null,null,null,null," Please select a school from the drop down","00:00:00",{"$f":"IF(ROW()-7 <= $C$1, IsValid(MyNamedRange[[#This Row],[StudentID]:[Valid]]), \"Exempt\")","v":"Exempt"},"Exempt"]
[57,null,null,null,null,null,null,null," Please select a school from the drop down","00:00:00",{"$f":"IF(ROW()-7 <= $C$1, IsValid(MyNamedRange[[#This Row],[StudentID]:[Valid]]), \"Exempt\")","v":"Exempt"},"Exempt"]
[58,null,null,null,null,null,null,null," Please select a school from the drop down","00:00:00",{"$f":"IF(ROW()-7 <= $C$1, IsValid(MyNamedRange[[#This Row],[StudentID]:[Valid]]), \"Exempt\")","v":"Exempt"},"Exempt"]
[59,null,null,null,null,null,null,null," Please select a school from the drop down","00:00:00",{"$f":"IF(ROW()-7 <= $C$1, IsValid(MyNamedRange[[#This Row],[StudentID]:[Valid]]), \"Exempt\")","v":"Exempt"},"Exempt"]
[60,null,null,null,null,null,null,null," Please select a school from the drop down","00:00:00",{"$f":"IF(ROW()-7 <= $C$1, IsValid(MyNamedRange[[#This Row],[StudentID]:[Valid]]), \"Exempt\")","v":"Exempt"},"Exempt"]
[61,null,null,null,null,null,null,null," Please select a school from the drop down","00:00:00",{"$f":"IF(ROW()-7 <= $C$1, IsValid(MyNamedRange[[#This Row],[StudentID]:[Valid]]), \"Exempt\")","v":"Exempt"},"Exempt"]
[62,null,null,null,null,null,null,null," Please select a school from the drop down","00:00:00",{"$f":"IF(ROW()-7 <= $C$1, IsValid(MyNamedRange[[#This Row],[StudentID]:[Valid]]), \"Exempt\")","v":"Exempt"},"Exempt"]
[63,null,null,null,null,null,null,null," Please select a school from the drop down","00:00:00",{"$f":"IF(ROW()-7 <= $C$1, IsValid(MyNamedRange[[#This Row],[StudentID]:[Valid]]), \"Exempt\")","v":"Exempt"},"Exempt"]
[64,null,null,null,null,null,null,null," Please select a school from the drop down","00:00:00",{"$f":"IF(ROW()-7 <= $C$1, IsValid(MyNamedRange[[#This Row],[StudentID]:[Valid]]), \"Exempt\")","v":"Exempt"},"Exempt"]
[65,null,null,null,null,null,null,null," Please select a school from the drop down","00:00:00",{"$f":"IF(ROW()-7 <= $C$1, IsValid(MyNamedRange[[#This Row],[StudentID]:[Valid]]), \"Exempt\")","v":"Exempt"},"Exempt"]
[66,null,null,null,null,null,null,null,{"$f":"$C$2","v":" Please select a school from the drop down"},{"$f":"$C$4","v":"00:00:00"},{"$f":"IF(ROW()-7 <= $C$1, IsValid(MyNamedRange[[#This Row],[StudentID]:[Valid]]), \"Exempt\")","v":"Exempt"},{"$f":"TRIM(IF(ROW()-7 <= $C$1, validateResults(A73:L73), \"Exempt\"))","v":"Exempt"}]
[67,null,null,null,null,null,null,null," Please select a school from the drop down","00:00:00",{"$f":"IF(ROW()-7 <= $C$1, IsValid(MyNamedRange[[#This Row],[StudentID]:[Valid]]), \"Exempt\")","v":"Exempt"},"Exempt"]
[68,null,null,null,null,null,null,null," Please select a school from the drop down","00:00:00",{"$f":"IF(ROW()-7 <= $C$1, IsValid(MyNamedRange[[#This Row],[StudentID]:[Valid]]), \"Exempt\")","v":"Exempt"},"Exempt"]
[69,null,null,null,null,null,null,null," Please select a school from the drop down","00:00:00",{"$f":"IF(ROW()-7 <= $C$1, IsValid(MyNamedRange[[#This Row],[StudentID]:[Valid]]), \"Exempt\")","v":"Exempt"},"Exempt"]
[70,null,null,null,null,null,null,null," Please select a school from the drop down","00:00:00",{"$f":"IF(ROW()-7 <= $C$1, IsValid(MyNamedRange[[#This Row],[StudentID]:[Valid]]), \"Exempt\")","v":"Exempt"},"Exempt"]
[71,null,null,null,null,null,null,null," Please select a school from the drop down","00:00:00",{"$f":"IF(ROW()-7 <= $C$1, IsValid(MyNamedRange[[#This Row],[StudentID]:[Valid]]), \"Exempt\")","v":"Exempt"},"Exempt"]
[72,null,null,null,null,null,null,null," Please select a school from the drop down","00:00:00",{"$f":"IF(ROW()-7 <= $C$1, IsValid(MyNamedRange[[#This Row],[StudentID]:[Valid]]), \"Exempt\")","v":"Exempt"},"Exempt"]
[73,null,null,null,null,null,null,null," Please select a school from the drop down","00:00:00",{"$f":"IF(ROW()-7 <= $C$1, IsValid(MyNamedRange[[#This Row],[StudentID]:[Valid]]), \"Exempt\")","v":"Exempt"},"Exempt"]
[74,null,null,null,null,null,null,null," Please select a school from the drop down","00:00:00",{"$f":"IF(ROW()-7 <= $C$1, IsValid(MyNamedRange[[#This Row],[StudentID]:[Valid]]), \"Exempt\")","v":"Exempt"},"Exempt"]
[75,null,null,null,null,null,null,null," Please select a school from the drop down","00:00:00",{"$f":"IF(ROW()-7 <= $C$1, IsValid(MyNamedRange[[#This Row],[StudentID]:[Valid]]), \"Exempt\")","v":"Exempt"},"Exempt"]
[76,null,null,null,null,null,null,null," Please select a school from the drop down","00:00:00",{"$f":"IF(ROW()-7 <= $C$1, IsValid(MyNamedRange[[#This Row],[StudentID]:[Valid]]), \"Exempt\")","v":"Exempt"},"Exempt"]
[77,null,null,null,null,null,null,null," Please select a school from the drop down","00:00:00",{"$f":"IF(ROW()-7 <= $C$1, IsValid(MyNamedRange[[#This Row],[StudentID]:[Valid]]), \"Exempt\")","v":"Exempt"},"Exempt"]
[78,null,null,null,null,null,null,null," Please select a school from the drop down","00:00:00",{"$f":"IF(ROW()-7 <= $C$1, IsValid(MyNamedRange[[#This Row],[StudentID]:[Valid]]), \"Exempt\")","v":"Exempt"},"Exempt"]
[79,null,null,null,null,null,null,null," Please select a school from the drop down","00:00:00",{"$f":"IF(ROW()-7 <= $C$1, IsValid(MyNamedRange[[#This Row],[StudentID]:[Valid]]), \"Exempt\")","v":"Exempt"},"Exempt"]
[80,null,null,null,null,null,null,null," Please select a school from the drop down","00:00:00",{"$f":"IF(ROW()-7 <= $C$1, IsValid(MyNamedRange[[#This Row],[StudentID]:[Valid]]), \"Exempt\")","v":"Exempt"},"Exempt"]
[81,null,null,null,null,null,null,null," Please select a school from the drop down","00:00:00",{"$f":"IF(ROW()-7 <= $C$1, IsValid(MyNamedRange[[#This Row],[StudentID]:[Valid]]), \"Exempt\")","v":"Exempt"},"Exempt"]
[82,null,null,null,null,null,null,null," Please select a school from the drop down","00:00:00",{"$f":"IF(ROW()-7 <= $C$1, IsValid(MyNamedRange[[#This Row],[StudentID]:[Valid]]), \"Exempt\")","v":"Exempt"},"Exempt"]
[83,null,null,null,null,null,null,null," Please select a school from the drop down","00:00:00",{"$f":"IF(ROW()-7 <= $C$1, IsValid(MyNamedRange[[#This Row],[StudentID]:[Valid]]), \"Exempt\")","v":"Exempt"},"Exempt"]
[84,null,null,null,null,null,null,null," Please select a school from the drop down","00:00:00",{"$f":"IF(ROW()-7 <= $C$1, IsValid(MyNamedRange[[#This Row],[StudentID]:[Valid]]), \"Exempt\")","v":"Exempt"},"Exempt"]
[85,null,null,null,null,null,null,null," Please select a school from the drop down","00:00:00",{"$f":"IF(ROW()-7 <= $C$1, IsValid(MyNamedRange[[#This Row],[StudentID]:[Valid]]), \"Exempt\")","v":"Exempt"},"Exempt"]
[86,null,null,null,null,null,null,null," Please select a school from the drop down","00:00:00",{"$f":"IF(ROW()-7 <= $C$1, IsValid(MyNamedRange[[#This Row],[StudentID]:[Valid]]), \"Exempt\")","v":"Exempt"},"Exempt"]
[87,null,null,null,null,null,null,null," Please select a school from the drop down","00:00:00",{"$f":"IF(ROW()-7 <= $C$1, IsValid(MyNamedRange[[#This Row],[StudentID]:[Valid]]), \"Exempt\")","v":"Exempt"},"Exempt"]
[88,null,null,null,null,null,null,null," Please select a school from the drop down","00:00:00",{"$f":"IF(ROW()-7 <= $C$1, IsValid(MyNamedRange[[#This Row],[StudentID]:[Valid]]), \"Exempt\")","v":"Exempt"},"Exempt"]
[89,null,null,null,null,null,null,null," Please select a school from the drop down","00:00:00",{"$f":"IF(ROW()-7 <= $C$1, IsValid(MyNamedRange[[#This Row],[StudentID]:[Valid]]), \"Exempt\")","v":"Exempt"},"Exempt"]
[90,null,null,null,null,null,null,null," Please select a school from the drop down","00:00:00",{"$f":"IF(ROW()-7 <= $C$1, IsValid(MyNamedRange[[#This Row],[StudentID]:[Valid]]), \"Exempt\")","v":"Exempt"},"Exempt"]
[91,null,null,null,null,null,null,null," Please select a school from the drop down","00:00:00",{"$f":"IF(ROW()-7 <= $C$1, IsValid(MyNamedRange[[#This Row],[StudentID]:[Valid]]), \"Exempt\")","v":"Exempt"},"Exempt"]
[92,null,null,null,null,null,null,null," Please select a school from the drop down","00:00:00",{"$f":"IF(ROW()-7 <= $C$1, IsValid(MyNamedRange[[#This Row],[StudentID]:[Valid]]), \"Exempt\")","v":"Exempt"},"Exempt"]
[93,null,null,null,null,null,null,null," Please select a school from the drop down","00:00:00",{"$f":"IF(ROW()-7 <= $C$1, IsValid(MyNamedRange[[#This Row],[StudentID]:[Valid]]), \"Exempt\")","v":"Exempt"},"Exempt"]
[94,null,null,null,null,null,null,null," Please select a school from the drop down","00:00:00",{"$f":"IF(ROW()-7 <= $C$1, IsValid(MyNamedRange[[#This Row],[StudentID]:[Valid]]), \"Exempt\")","v":"Exempt"},"Exempt"]
[95,null,null,null,null,null,null,null," Please select a school from the drop down","00:00:00",{"$f":"IF(ROW()-7 <= $C$1, IsValid(MyNamedRange[[#This Row],[StudentID]:[Valid]]), \"Exempt\")","v":"Exempt"},"Exempt"]
[96,null,null,null,null,null,null,null," Please select a school from the drop down","00:00:00",{"$f":"IF(ROW()-7 <= $C$1, IsValid(MyNamedRange[[#This Row],[StudentID]:[Valid]]), \"Exempt\")","v":"Exempt"},"Exempt"]
[97,null,null,null,null,null,null,null," Please select a school from the drop down","00:00:00",{"$f":"IF(ROW()-7 <= $C$1, IsValid(MyNamedRange[[#This Row],[StudentID]:[Valid]]), \"Exempt\")","v":"Exempt"},"Exempt"]
[98,null,null,null,null,null,null,null," Please select a school from the drop down","00:00:00",{"$f":"IF(ROW()-7 <= $C$1, IsValid(MyNamedRange[[#This Row],[StudentID]:[Valid]]), \"Exempt\")","v":"Exempt"},"Exempt"]
[99,null,null,null,null,null,null,null," Please select a school from the drop down","00:00:00",{"$f":"IF(ROW()-7 <= $C$1, IsValid(MyNamedRange[[#This Row],[StudentID]:[Valid]]), \"Exempt\")","v":"Exempt"},"Exempt"]
[100,null,null,null,null,null,null,null," Please select a school from the drop down","00:00:00",{"$f":"IF(ROW()-7 <= $C$1, IsValid(MyNamedRange[[#This Row],[StudentID]:[Valid]]), \"Exempt\")","v":"Exempt"},"Exempt"]
[101,null,null,null,null,null,null,null," Please select a school from the drop down","00:00:00",{"$f":"IF(ROW()-7 <= $C$1, IsValid(MyNamedRange[[#This Row],[StudentID]:[Valid]]), \"Exempt\")","v":"Exempt"}]
[102,null,null,null,null,null,null,null," Please select a school from the drop down","00:00:00",{"$f":"IF(ROW()-7 <= $C$1, IsValid(MyNamedRange[[#This Row],[StudentID]:[Valid]]), \"Exempt\")","v":"Exempt"}]
[103,null,null,null,null,null,null,null," Please select a school from the drop down","00:00:00",{"$f":"IF(ROW()-7 <= $C$1, IsValid(MyNamedRange[[#This Row],[StudentID]:[Valid]]), \"Exempt\")","v":"Exempt"}]
[104,null,null,null,null,null,null,null," Please select a school from the drop down","00:00:00",{"$f":"IF(ROW()-7 <= $C$1, IsValid(MyNamedRange[[#This Row],[StudentID]:[Valid]]), \"Exempt\")","v":"Exempt"}]
[105,null,null,null,null,null,null,null," Please select a school from the drop down","00:00:00",{"$f":"IF(ROW()-7 <= $C$1, IsValid(MyNamedRange[[#This Row],[StudentID]:[Valid]]), \"Exempt\")","v":"Exempt"}]
[106,null,null,null,null,null,null,null," Please select a school from the drop down","00:00:00",{"$f":"IF(ROW()-7 <= $C$1, IsValid(MyNamedRange[[#This Row],[StudentID]:[Valid]]), \"Exempt\")","v":"Exempt"}]
[107,null,null,null,null,null,null,null," Please select a school from the drop down","00:00:00",{"$f":"IF(ROW()-7 <= $C$1, IsValid(MyNamedRange[[#This Row],[StudentID]:[Valid]]), \"Exempt\")","v":"Exempt"}]
[108,null,null,null,null,null,null,null," Please select a school from the drop down","00:00:00",{"$f":"IF(ROW()-7 <= $C$1, IsValid(MyNamedRange[[#This Row],[StudentID]:[Valid]]), \"Exempt\")","v":"Exempt"}]
[109,null,null,null,null,null,null,null," Please select a school from the drop down","00:00:00",{"$f":"IF(ROW()-7 <= $C$1, IsValid(MyNamedRange[[#This Row],[StudentID]:[Valid]]), \"Exempt\")","v":"Exempt"}]
[110,null,null,null,null,null,null,null," Please select a school from the drop down","00:00:00",{"$f":"IF(ROW()-7 <= $C$1, IsValid(MyNamedRange[[#This Row],[StudentID]:[Valid]]), \"Exempt\")","v":"Exempt"}]
[111,null,null,null,null,null,null,null," Please select a school from the drop down","00:00:00",{"$f":"IF(ROW()-7 <= $C$1, IsValid(MyNamedRange[[#This Row],[StudentID]:[Valid]]), \"Exempt\")","v":"Exempt"}]
[112,null,null,null,null,null,null,null," Please select a school from the drop down","00:00:00",{"$f":"IF(ROW()-7 <= $C$1, IsValid(MyNamedRange[[#This Row],[StudentID]:[Valid]]), \"Exempt\")","v":"Exempt"}]
[113,null,null,null,null,null,null,null," Please select a school from the drop down","00:00:00",{"$f":"IF(ROW()-7 <= $C$1, IsValid(MyNamedRange[[#This Row],[StudentID]:[Valid]]), \"Exempt\")","v":"Exempt"}]
[114,null,null,null,null,null,null,null," Please select a school from the drop down","00:00:00",{"$f":"IF(ROW()-7 <= $C$1, IsValid(MyNamedRange[[#This Row],[StudentID]:[Valid]]), \"Exempt\")","v":"Exempt"}]
[115,null,null,null,null,null,null,null," Please select a school from the drop down","00:00:00",{"$f":"IF(ROW()-7 <= $C$1, IsValid(MyNamedRange[[#This Row],[StudentID]:[Valid]]), \"Exempt\")","v":"Exempt"}]
[116,null,null,null,null,null,null,null," Please select a school from the drop down","00:00:00",{"$f":"IF(ROW()-7 <= $C$1, IsValid(MyNamedRange[[#This Row],[StudentID]:[Valid]]), \"Exempt\")","v":"Exempt"}]
[117,null,null,null,null,null,null,null," Please select a school from the drop down","00:00:00",{"$f":"IF(ROW()-7 <= $C$1, IsValid(MyNamedRange[[#This Row],[StudentID]:[Valid]]), \"Exempt\")","v":"Exempt"}]
[118,null,null,null,null,null,null,null," Please select a school from the drop down","00:00:00",{"$f":"IF(ROW()-7 <= $C$1, IsValid(MyNamedRange[[#This Row],[StudentID]:[Valid]]), \"Exempt\")","v":"Exempt"}]
[119,null,null,null,null,null,null,null," Please select a school from the drop down","00:00:00",{"$f":"IF(ROW()-7 <= $C$1, IsValid(MyNamedRange[[#This Row],[StudentID]:[Valid]]), \"Exempt\")","v":"Exempt"}]
[120,null,null,null,null,null,null,null," Please select a school from the drop down","00:00:00",{"$f":"IF(ROW()-7 <= $C$1, IsValid(MyNamedRange[[#This Row],[StudentID]:[Valid]]), \"Exempt\")","v":"Exempt"}]
[121,null,null,null,null,null,null,null," Please select a school from the drop down","00:00:00",{"$f":"IF(ROW()-7 <= $C$1, IsValid(MyNamedRange[[#This Row],[StudentID]:[Valid]]), \"Exempt\")","v":"Exempt"}]
[122,null,null,null,null,null,null,null," Please select a school from the drop down","00:00:00",{"$f":"IF(ROW()-7 <= $C$1, IsValid(MyNamedRange[[#This Row],[StudentID]:[Valid]]), \"Exempt\")","v":"Exempt"}]
[123,null,null,null,null,null,null,null," Please select a school from the drop down","00:00:00",{"$f":"IF(ROW()-7 <= $C$1, IsValid(MyNamedRange[[#This Row],[StudentID]:[Valid]]), \"Exempt\")","v":"Exempt"}]
[124,null,null,null,null,null,null,null," Please select a school from the drop down","00:00:00",{"$f":"IF(ROW()-7 <= $C$1, IsValid(MyNamedRange[[#This Row],[StudentID]:[Valid]]), \"Exempt\")","v":"Exempt"}]
[125,null,null,null,null,null,null,null," Please select a school from the drop down","00:00:00",{"$f":"IF(ROW()-7 <= $C$1, IsValid(MyNamedRange[[#This Row],[StudentID]:[Valid]]), \"Exempt\")","v":"Exempt"}]
[126,null,null,null,null,null,null,null," Please select a school from the drop down","00:00:00",{"$f":"IF(ROW()-7 <= $C$1, IsValid(MyNamedRange[[#This Row],[StudentID]:[Valid]]), \"Exempt\")","v":"Exempt"}]
[127,null,null,null,null,null,null,null," Please select a school from the drop down","00:00:00",{"$f":"IF(ROW()-7 <= $C$1, IsValid(MyNamedRange[[#This Row],[StudentID]:[Valid]]), \"Exempt\")","v":"Exempt"}]
[128,null,null,null,null,null,null,null," Please select a school from the drop down","00:00:00",{"$f":"IF(ROW()-7 <= $C$1, IsValid(MyNamedRange[[#This Row],[StudentID]:[Valid]]), \"Exempt\")","v":"Exempt"}]
[129,null,null,null,null,null,null,null," Please select a school from the drop down","00:00:00",{"$f":"IF(ROW()-7 <= $C$1, IsValid(MyNamedRange[[#This Row],[StudentID]:[Valid]]), \"Exempt\")","v":"Exempt"}]
[130,null,null,null,null,null,null,null,{"$f":"$C$2","v":" Please select a school from the drop down"},{"$f":"$C$4","v":"00:00:00"},{"$f":"IF(ROW()-7 <= $C$1, IsValid(MyNamedRange[[#This Row],[StudentID]:[Valid]]), \"Exempt\")","v":"Exempt"}]
[131,null,null,null,null,null,null,null," Please select a school from the drop down","00:00:00",{"$f":"IF(ROW()-7 <= $C$1, IsValid(MyNamedRange[[#This Row],[StudentID]:[Valid]]), \"Exempt\")","v":"Exempt"}]
[132,null,null,null,null,null,null,null," Please select a school from the drop down","00:00:00",{"$f":"IF(ROW()-7 <= $C$1, IsValid(MyNamedRange[[#This Row],[StudentID]:[Valid]]), \"Exempt\")","v":"Exempt"}]
[133,null,null,null,null,null,null,null," Please select a school from the drop down","00:00:00",{"$f":"IF(ROW()-7 <= $C$1, IsValid(MyNamedRange[[#This Row],[StudentID]:[Valid]]), \"Exempt\")","v":"Exempt"}]
[134,null,null,null,null,null,null,null," Please select a school from the drop down","00:00:00",{"$f":"IF(ROW()-7 <= $C$1, IsValid(MyNamedRange[[#This Row],[StudentID]:[Valid]]), \"Exempt\")","v":"Exempt"}]
[135,null,null,null,null,null,null,null," Please select a school from the drop down","00:00:00",{"$f":"IF(ROW()-7 <= $C$1, IsValid(MyNamedRange[[#This Row],[StudentID]:[Valid]]), \"Exempt\")","v":"Exempt"}]
[136,null,null,null,null,null,null,null," Please select a school from the drop down","00:00:00",{"$f":"IF(ROW()-7 <= $C$1, IsValid(MyNamedRange[[#This Row],[StudentID]:[Valid]]), \"Exempt\")","v":"Exempt"}]
[137,null,null,null,null,null,null,null," Please select a school from the drop down","00:00:00",{"$f":"IF(ROW()-7 <= $C$1, IsValid(MyNamedRange[[#This Row],[StudentID]:[Valid]]), \"Exempt\")","v":"Exempt"}]
[138,null,null,null,null,null,null,null," Please select a school from the drop down","00:00:00",{"$f":"IF(ROW()-7 <= $C$1, IsValid(MyNamedRange[[#This Row],[StudentID]:[Valid]]), \"Exempt\")","v":"Exempt"}]
[139,null,null,null,null,null,null,null," Please select a school from the drop down","00:00:00",{"$f":"IF(ROW()-7 <= $C$1, IsValid(MyNamedRange[[#This Row],[StudentID]:[Valid]]), \"Exempt\")","v":"Exempt"}]
[140,null,null,null,null,null,null,null," Please select a school from the drop down","00:00:00",{"$f":"IF(ROW()-7 <= $C$1, IsValid(MyNamedRange[[#This Row],[StudentID]:[Valid]]), \"Exempt\")","v":"Exempt"}]
[141,null,null,null,null,null,null,null," Please select a school from the drop down","00:00:00",{"$f":"IF(ROW()-7 <= $C$1, IsValid(MyNamedRange[[#This Row],[StudentID]:[Valid]]), \"Exempt\")","v":"Exempt"}]
[142,null,null,null,null,null,null,null," Please select a school from the drop down","00:00:00",{"$f":"IF(ROW()-7 <= $C$1, IsValid(MyNamedRange[[#This Row],[StudentID]:[Valid]]), \"Exempt\")","v":"Exempt"}]
[143,null,null,null,null,null,null,null," Please select a school from the drop down","00:00:00",{"$f":"IF(ROW()-7 <= $C$1, IsValid(MyNamedRange[[#This Row],[StudentID]:[Valid]]), \"Exempt\")","v":"Exempt"}]
[144,null,null,null,null,null,null,null," Please select a school from the drop down","00:00:00",{"$f":"IF(ROW()-7 <= $C$1, IsValid(MyNamedRange[[#This Row],[StudentID]:[Valid]]), \"Exempt\")","v":"Exempt"}]
[145,null,null,null,null,null,null,null," Please select a school from the drop down","00:00:00",{"$f":"IF(ROW()-7 <= $C$1, IsValid(MyNamedRange[[#This Row],[StudentID]:[Valid]]), \"Exempt\")","v":"Exempt"}]
[146,null,null,null,null,null,null,null," Please select a school from the drop down","00:00:00",{"$f":"IF(ROW()-7 <= $C$1, IsValid(MyNamedRange[[#This Row],[StudentID]:[Valid]]), \"Exempt\")","v":"Exempt"}]
[147,null,null,null,null,null,null,null," Please select a school from the drop down","00:00:00",{"$f":"IF(ROW()-7 <= $C$1, IsValid(MyNamedRange[[#This Row],[StudentID]:[Valid]]), \"Exempt\")","v":"Exempt"}]
[148,null,null,null,null,null,null,null," Please select a school from the drop down","00:00:00",{"$f":"IF(ROW()-7 <= $C$1, IsValid(MyNamedRange[[#This Row],[StudentID]:[Valid]]), \"Exempt\")","v":"Exempt"}]
[149,null,null,null,null,null,null,null," Please select a school from the drop down","00:00:00",{"$f":"IF(ROW()-7 <= $C$1, IsValid(MyNamedRange[[#This Row],[StudentID]:[Valid]]), \"Exempt\")","v":"Exempt"}]
[150,null,null,null,null,null,null,null," Please select a school from the drop down","00:00:00",{"$f":"IF(ROW()-7 <= $C$1, IsValid(MyNamedRange[[#This Row],[StudentID]:[Valid]]), \"Exempt\")","v":"Exempt"}]
[151,null,null,null,null,null,null,null," Please select a school from the drop down","00:00:00",{"$f":"IF(ROW()-7 <= $C$1, IsValid(MyNamedRange[[#This Row],[StudentID]:[Valid]]), \"Exempt\")","v":"Exempt"}]
[152,null,null,null,null,null,null,null," Please select a school from the drop down","00:00:00",{"$f":"IF(ROW()-7 <= $C$1, IsValid(MyNamedRange[[#This Row],[StudentID]:[Valid]]), \"Exempt\")","v":"Exempt"}]
[153,null,null,null,null,null,null,null," Please select a school from the drop down","00:00:00",{"$f":"IF(ROW()-7 <= $C$1, IsValid(MyNamedRange[[#This Row],[StudentID]:[Valid]]), \"Exempt\")","v":"Exempt"}]
[154,null,null,null,null,null,null,null," Please select a school from the drop down","00:00:00",{"$f":"IF(ROW()-7 <= $C$1, IsValid(MyNamedRange[[#This Row],[StudentID]:[Valid]]), \"Exempt\")","v":"Exempt"}]
[155,null,null,null,null,null,null,null," Please select a school from the drop down","00:00:00",{"$f":"IF(ROW()-7 <= $C$1, IsValid(MyNamedRange[[#This Row],[StudentID]:[Valid]]), \"Exempt\")","v":"Exempt"}]
[156,null,null,null,null,null,null,null," Please select a school from the drop down","00:00:00",{"$f":"IF(ROW()-7 <= $C$1, IsValid(MyNamedRange[[#This Row],[StudentID]:[Valid]]), \"Exempt\")","v":"Exempt"}]
[157,null,null,null,null,null,null,null," Please select a school from the drop down","00:00:00",{"$f":"IF(ROW()-7 <= $C$1, IsValid(MyNamedRange[[#This Row],[StudentID]:[Valid]]), \"Exempt\")","v":"Exempt"}]
[158,null,null,null,null,null,null,null," Please select a school from the drop down","00:00:00",{"$f":"IF(ROW()-7 <= $C$1, IsValid(MyNamedRange[[#This Row],[StudentID]:[Valid]]), \"Exempt\")","v":"Exempt"}]
[159,null,null,null,null,null,null,null," Please select a school from the drop down","00:00:00",{"$f":"IF(ROW()-7 <= $C$1, IsValid(MyNamedRange[[#This Row],[StudentID]:[Valid]]), \"Exempt\")","v":"Exempt"}]
[160,null,null,null,null,null,null,null," Please select a school from the drop down","00:00:00",{"$f":"IF(ROW()-7 <= $C$1, IsValid(MyNamedRange[[#This Row],[StudentID]:[Valid]]), \"Exempt\")","v":"Exempt"}]
[161,null,null,null,null,null,null,null," Please select a school from the drop down","00:00:00",{"$f":"IF(ROW()-7 <= $C$1, IsValid(MyNamedRange[[#This Row],[StudentID]:[Valid]]), \"Exempt\")","v":"Exempt"}]
[162,null,null,null,null,null,null,null," Please select a school from the drop down","00:00:00",{"$f":"IF(ROW()-7 <= $C$1, IsValid(MyNamedRange[[#This Row],[StudentID]:[Valid]]), \"Exempt\")","v":"Exempt"}]
[163,null,null,null,null,null,null,null," Please select a school from the drop down","00:00:00",{"$f":"IF(ROW()-7 <= $C$1, IsValid(MyNamedRange[[#This Row],[StudentID]:[Valid]]), \"Exempt\")","v":"Exempt"}]
[164,null,null,null,null,null,null,null," Please select a school from the drop down","00:00:00",{"$f":"IF(ROW()-7 <= $C$1, IsValid(MyNamedRange[[#This Row],[StudentID]:[Valid]]), \"Exempt\")","v":"Exempt"}]
[165,null,null,null,null,null,null,null," Please select a school from the drop down","00:00:00",{"$f":"IF(ROW()-7 <= $C$1, IsValid(MyNamedRange[[#This Row],[StudentID]:[Valid]]), \"Exempt\")","v":"Exempt"}]
[166,null,null,null,null,null,null,null," Please select a school from the drop down","00:00:00",{"$f":"IF(ROW()-7 <= $C$1, IsValid(MyNamedRange[[#This Row],[StudentID]:[Valid]]), \"Exempt\")","v":"Exempt"}]
[167,null,null,null,null,null,null,null," Please select a school from the drop down","00:00:00",{"$f":"IF(ROW()-7 <= $C$1, IsValid(MyNamedRange[[#This Row],[StudentID]:[Valid]]), \"Exempt\")","v":"Exempt"}]
[168,null,null,null,null,null,null,null," Please select a school from the drop down","00:00:00",{"$f":"IF(ROW()-7 <= $C$1, IsValid(MyNamedRange[[#This Row],[StudentID]:[Valid]]), \"Exempt\")","v":"Exempt"}]
[169,null,null,null,null,null,null,null," Please select a school from the drop down","00:00:00",{"$f":"IF(ROW()-7 <= $C$1, IsValid(MyNamedRange[[#This Row],[StudentID]:[Valid]]), \"Exempt\")","v":"Exempt"}]
[170,null,null,null,null,null,null,null," Please select a school from the drop down","00:00:00",{"$f":"IF(ROW()-7 <= $C$1, IsValid(MyNamedRange[[#This Row],[StudentID]:[Valid]]), \"Exempt\")","v":"Exempt"}]
[171,null,null,null,null,null,null,null," Please select a school from the drop down","00:00:00",{"$f":"IF(ROW()-7 <= $C$1, IsValid(MyNamedRange[[#This Row],[StudentID]:[Valid]]), \"Exempt\")","v":"Exempt"}]
[172,null,null,null,null,null,null,null," Please select a school from the drop down","00:00:00",{"$f":"IF(ROW()-7 <= $C$1, IsValid(MyNamedRange[[#This Row],[StudentID]:[Valid]]), \"Exempt\")","v":"Exempt"}]
[173,null,null,null,null,null,null,null," Please select a school from the drop down","00:00:00",{"$f":"IF(ROW()-7 <= $C$1, IsValid(MyNamedRange[[#This Row],[StudentID]:[Valid]]), \"Exempt\")","v":"Exempt"}]
[174,null,null,null,null,null,null,null," Please select a school from the drop down","00:00:00",{"$f":"IF(ROW()-7 <= $C$1, IsValid(MyNamedRange[[#This Row],[StudentID]:[Valid]]), \"Exempt\")","v":"Exempt"}]
[176,null,null,null,null,null,null,null," Please select a school from the drop down","00:00:00",{"$f":"IF(ROW()-7 <= $C$1, IsValid(MyNamedRange[[#This Row],[StudentID]:[Valid]]), \"Exempt\")","v":"Exempt"}]
[177,null,null,null,null,null,null,null," Please select a school from the drop down","00:00:00",{"$f":"IF(ROW()-7 <= $C$1, IsValid(MyNamedRange[[#This Row],[StudentID]:[Valid]]), \"Exempt\")","v":"Exempt"}]
[178,null,null,null,null,null,null,null," Please select a school from the drop down","00:00:00",{"$f":"IF(ROW()-7 <= $C$1, IsValid(MyNamedRange[[#This Row],[StudentID]:[Valid]]), \"Exempt\")","v":"Exempt"}]
[179,null,null,null,null,null,null,null," Please select a school from the drop down","00:00:00",{"$f":"IF(ROW()-7 <= $C$1, IsValid(MyNamedRange[[#This Row],[StudentID]:[Valid]]), \"Exempt\")","v":"Exempt"}]
[180,null,null,null,null,null,null,null," Please select a school from the drop down","00:00:00",{"$f":"IF(ROW()-7 <= $C$1, IsValid(MyNamedRange[[#This Row],[StudentID]:[Valid]]), \"Exempt\")","v":"Exempt"}]
[181,null,null,null,null,null,null,null," Please select a school from the drop down","00:00:00",{"$f":"IF(ROW()-7 <= $C$1, IsValid(MyNamedRange[[#This Row],[StudentID]:[Valid]]), \"Exempt\")","v":"Exempt"}]
[182,null,null,null,null,null,null,null," Please select a school from the drop down","00:00:00",{"$f":"IF(ROW()-7 <= $C$1, IsValid(MyNamedRange[[#This Row],[StudentID]:[Valid]]), \"Exempt\")","v":"Exempt"}]
[183,null,null,null,null,null,null,null," Please select a school from the drop down","00:00:00",{"$f":"IF(ROW()-7 <= $C$1, IsValid(MyNamedRange[[#This Row],[StudentID]:[Valid]]), \"Exempt\")","v":"Exempt"}]
[184,null,null,null,null,null,null,null," Please select a school from the drop down","00:00:00",{"$f":"IF(ROW()-7 <= $C$1, IsValid(MyNamedRange[[#This Row],[StudentID]:[Valid]]), \"Exempt\")","v":"Exempt"}]
[185,null,null,null,null,null,null,null," Please select a school from the drop down","00:00:00",{"$f":"IF(ROW()-7 <= $C$1, IsValid(MyNamedRange[[#This Row],[StudentID]:[Valid]]), \"Exempt\")","v":"Exempt"}]
[186,null,null,null,null,null,null,null," Please select a school from the drop down","00:00:00",{"$f":"IF(ROW()-7 <= $C$1, IsValid(MyNamedRange[[#This Row],[StudentID]:[Valid]]), \"Exempt\")","v":"Exempt"}]
[187,null,null,null,null,null,null,null," Please select a school from the drop down","00:00:00",{"$f":"IF(ROW()-7 <= $C$1, IsValid(MyNamedRange[[#This Row],[StudentID]:[Valid]]), \"Exempt\")","v":"Exempt"}]
[188,null,null,null,null,null,null,null," Please select a school from the drop down","00:00:00",{"$f":"IF(ROW()-7 <= $C$1, IsValid(MyNamedRange[[#This Row],[StudentID]:[Valid]]), \"Exempt\")","v":"Exempt"}]
[189,null,null,null,null,null,null,null," Please select a school from the drop down","00:00:00",{"$f":"IF(ROW()-7 <= $C$1, IsValid(MyNamedRange[[#This Row],[StudentID]:[Valid]]), \"Exempt\")","v":"Exempt"}]
[190,null,null,null,null,null,null,null," Please select a school from the drop down","00:00:00",{"$f":"IF(ROW()-7 <= $C$1, IsValid(MyNamedRange[[#This Row],[StudentID]:[Valid]]), \"Exempt\")","v":"Exempt"}]
[191,null,null,null,null,null,null,null," Please select a school from the drop down","00:00:00",{"$f":"IF(ROW()-7 <= $C$1, IsValid(MyNamedRange[[#This Row],[StudentID]:[Valid]]), \"Exempt\")","v":"Exempt"}]
[192,null,null,null,null,null,null,null," Please select a school from the drop down","00:00:00",{"$f":"IF(ROW()-7 <= $C$1, IsValid(MyNamedRange[[#This Row],[StudentID]:[Valid]]), \"Exempt\")","v":"Exempt"}]
[193,null,null,null,null,null,null,null," Please select a school from the drop down","00:00:00",{"$f":"IF(ROW()-7 <= $C$1, IsValid(MyNamedRange[[#This Row],[StudentID]:[Valid]]), \"Exempt\")","v":"Exempt"}]
[194,null,null,null,null,null,null,null," Please select a school from the drop down","00:00:00",{"$f":"IF(ROW()-7 <= $C$1, IsValid(MyNamedRange[[#This Row],[StudentID]:[Valid]]), \"Exempt\")","v":"Exempt"}]
[195,null,null,null,null,null,null,null,{"$f":"$C$2","v":" Please select a school from the drop down"},{"$f":"$C$4","v":"00:00:00"},{"$f":"IF(ROW()-7 <= $C$1, IsValid(MyNamedRange[[#This Row],[StudentID]:[Valid]]), \"Exempt\")","v":"Exempt"}]
[196,null,null,null,null,null,null,null," Please select a school from the drop down","00:00:00",{"$f":"IF(ROW()-7 <= $C$1, IsValid(MyNamedRange[[#This Row],[StudentID]:[Valid]]), \"Exempt\")","v":"Exempt"}]
[197,null,null,null,null,null,null,null," Please select a school from the drop down","00:00:00",{"$f":"IF(ROW()-7 <= $C$1, IsValid(MyNamedRange[[#This Row],[StudentID]:[Valid]]), \"Exempt\")","v":"Exempt"}]
[198,null,null,null,null,null,null,null," Please select a school from the drop down","00:00:00",{"$f":"IF(ROW()-7 <= $C$1, IsValid(MyNamedRange[[#This Row],[StudentID]:[Valid]]), \"Exempt\")","v":"Exempt"}]
[199,null,null,null,null,null,null,null," Please select a school from the drop down","00:00:00",{"$f":"IF(ROW()-7 <= $C$1, IsValid(MyNamedRange[[#This Row],[StudentID]:[Valid]]), \"Exempt\")","v":"Exempt"}]
[200,null,null,null,null,null,null,null," Please select a school from the drop down","00:00:00",{"$f":"IF(ROW()-7 <= $C$1, IsValid(MyNamedRange[[#This Row],[StudentID]:[Valid]]), \"Exempt\")","v":"Exempt"}]